{"text_format":"3","workbook":"xlsx","n_sheets":3,"sheets":["Planificare zilnică","Planificator de evenimente","Intervale de timp"],"not_rendered":{"defined_names":21},"read":"whole","date_system":"1900"}

{"sheet":"Planificare zilnică","index":0,"n_rows":76,"n_cols":13,"rows_kept":76,"merged":[[0,1,0,2],[1,1,5,2],[2,12,4,12],[3,7,4,7],[5,12,7,12],[6,1,8,2],[8,12,10,12],[9,7,10,7],[10,1,10,2],[11,12,13,12],[14,12,16,12],[15,7,16,7],[17,12,19,12],[18,1,18,2],[20,12,22,12],[21,7,22,7],[23,12,25,12],[24,1,24,2],[25,1,25,2],[26,7,27,7],[26,12,28,12],[29,12,31,12],[31,7,32,7],[32,12,34,12]]}
[null,"Planificare zilnică"]
[null,{"$f":"IFERROR(DAY(ValDată),\"\")","v":23},null,null,"Oră",{"$f":"IFERROR(UPPER(TEXT(DATE(AnRaportare,NumărLună,ZiRaportare),\"d mmmm yyyy\")),\"\")","v":"23 IUNIE 2022"},null,"SĂPTĂMÂNA DINTR-O PRIVIRE",{"$nulls":3},"NOTE/LISTA DE FĂCUT"]
[{"$nulls":4},"Oră","Descriere",null,{"$f":"IFERROR(TEXT(DATEVALUE(ValDată)+1,\"dddd\"),\"\")","v":"vineri"},{"$f":"IFERROR(INDEX(PlanificatorEvenimente[],MATCH($H$6&\"|\"&ROW(A1),PlanificatorEvenimente[VALOARE UNICĂ (CALCULATĂ)],0),2),\"\")","v":""},{"$f":"IFERROR(INDEX(PlanificatorEvenimente[],MATCH($H$6&\"|\"&ROW(A1),PlanificatorEvenimente[VALOARE UNICĂ (CALCULATĂ)],0),3),\"\")","v":""},null,null,"Luat hainele de la curățătorie"]
[{"$nulls":4},{"$f":"'Intervale de timp'!E3","v":"06:00:00"},{"$f":"IFERROR(INDEX(PlanificatorEvenimente[],MATCH(DATEVALUE(ValDată)&PlanificareZilnică[[#This Row],[Oră]],CăutareDatăȘiOră,0),3),\"\")","v":"Trezirea"},null,{"$f":"IFERROR(TEXT(DATEVALUE(ValDată)+1,\"d\"),\"\")","v":"24"},{"$f":"IFERROR(INDEX(PlanificatorEvenimente[],MATCH($H$6&\"|\"&ROW(A2),PlanificatorEvenimente[VALOARE UNICĂ (CALCULATĂ)],0),2),\"\")","v":"06:30:00"},{"$f":"IFERROR(INDEX(PlanificatorEvenimente[],MATCH($H$6&\"|\"&ROW(A2),PlanificatorEvenimente[VALOARE UNICĂ (CALCULATĂ)],0),3),\"\")","v":"Mic dejun"}]
[{"$nulls":4},{"$f":"'Intervale de timp'!E4","v":"06:15:00"},{"$f":"IFERROR(INDEX(PlanificatorEvenimente[],MATCH(DATEVALUE(ValDată)&PlanificareZilnică[[#This Row],[Oră]],CăutareDatăȘiOră,0),3),\"\")","v":""},null,null,{"$f":"IFERROR(INDEX(PlanificatorEvenimente[],MATCH($H$6&\"|\"&ROW(A3),PlanificatorEvenimente[VALOARE UNICĂ (CALCULATĂ)],0),2),\"\")","v":""},{"$f":"IFERROR(INDEX(PlanificatorEvenimente[],MATCH($H$6&\"|\"&ROW(A3),PlanificatorEvenimente[VALOARE UNICĂ (CALCULATĂ)],0),3),\"\")","v":""}]
[{"$nulls":4},{"$f":"'Intervale de timp'!E5","v":"06:30:00"},{"$f":"IFERROR(INDEX(PlanificatorEvenimente[],MATCH(DATEVALUE(ValDată)&PlanificareZilnică[[#This Row],[Oră]],CăutareDatăȘiOră,0),3),\"\")","v":"Duș"},null,{"$f":"IFERROR(ValDată+1,\"\")","v":"2022-06-24"},{"$f":"IFERROR(INDEX(PlanificatorEvenimente[],MATCH($H$6&\"|\"&ROW(A4),PlanificatorEvenimente[VALOARE UNICĂ (CALCULATĂ)],0),2),\"\")","v":""},{"$f":"IFERROR(INDEX(PlanificatorEvenimente[],MATCH($H$6&\"|\"&ROW(A4),PlanificatorEvenimente[VALOARE UNICĂ (CALCULATĂ)],0),3),\"\")","v":""},null,null,"Sunat la firma de TV prin cablu"]
[null,{"$f":"IFERROR(TEXT(ValDată,\"dddd\"),\"\")","v":"joi"},null,null,{"$f":"'Intervale de timp'!E6","v":"06:45:00"},{"$f":"IFERROR(INDEX(PlanificatorEvenimente[],MATCH(DATEVALUE(ValDată)&PlanificareZilnică[[#This Row],[Oră]],CăutareDatăȘiOră,0),3),\"\")","v":""},null,null,{"$f":"IFERROR(INDEX(PlanificatorEvenimente[],MATCH($H$6&\"|\"&ROW(A5),PlanificatorEvenimente[VALOARE UNICĂ (CALCULATĂ)],0),2),\"\")","v":""},{"$f":"IFERROR(INDEX(PlanificatorEvenimente[],MATCH($H$6&\"|\"&ROW(A5),PlanificatorEvenimente[VALOARE UNICĂ (CALCULATĂ)],0),3),\"\")","v":""}]
[{"$nulls":4},{"$f":"'Intervale de timp'!E7","v":"07:00:00"},{"$f":"IFERROR(INDEX(PlanificatorEvenimente[],MATCH(DATEVALUE(ValDată)&PlanificareZilnică[[#This Row],[Oră]],CăutareDatăȘiOră,0),3),\"\")","v":""},null,null,{"$f":"IFERROR(INDEX(PlanificatorEvenimente[],MATCH($H$6&\"|\"&ROW(A6),PlanificatorEvenimente[VALOARE UNICĂ (CALCULATĂ)],0),2),\"\")","v":""},{"$f":"IFERROR(INDEX(PlanificatorEvenimente[],MATCH($H$6&\"|\"&ROW(A6),PlanificatorEvenimente[VALOARE UNICĂ (CALCULATĂ)],0),3),\"\")","v":""}]
[{"$nulls":4},{"$f":"'Intervale de timp'!E8","v":"07:15:00"},{"$f":"IFERROR(INDEX(PlanificatorEvenimente[],MATCH(DATEVALUE(ValDată)&PlanificareZilnică[[#This Row],[Oră]],CăutareDatăȘiOră,0),3),\"\")","v":""},null,{"$f":"IFERROR(TEXT(DATEVALUE(ValDată)+2,\"dddd\"),\"\")","v":"sâmbătă"},{"$f":"IFERROR(INDEX(PlanificatorEvenimente[],MATCH($H$12&\"|\"&ROW(A1),PlanificatorEvenimente[VALOARE UNICĂ (CALCULATĂ)],0),2),\"\")","v":""},{"$f":"IFERROR(INDEX(PlanificatorEvenimente[],MATCH($H$12&\"|\"&ROW(A1),PlanificatorEvenimente[VALOARE UNICĂ (CALCULATĂ)],0),3),\"\")","v":""}]
[{"$nulls":4},{"$f":"'Intervale de timp'!E9","v":"07:30:00"},{"$f":"IFERROR(INDEX(PlanificatorEvenimente[],MATCH(DATEVALUE(ValDată)&PlanificareZilnică[[#This Row],[Oră]],CăutareDatăȘiOră,0),3),\"\")","v":"Plecarea la serviciu"},null,{"$f":"IFERROR(TEXT(DATEVALUE(ValDată)+2,\"d\"),\"\")","v":"25"},{"$f":"IFERROR(INDEX(PlanificatorEvenimente[],MATCH($H$12&\"|\"&ROW(A2),PlanificatorEvenimente[VALOARE UNICĂ (CALCULATĂ)],0),2),\"\")","v":""},{"$f":"IFERROR(INDEX(PlanificatorEvenimente[],MATCH($H$12&\"|\"&ROW(A2),PlanificatorEvenimente[VALOARE UNICĂ (CALCULATĂ)],0),3),\"\")","v":""}]
[null,"VIZUALIZARE PLANIFICARE",null,null,{"$f":"'Intervale de timp'!E10","v":"07:45:00"},{"$f":"IFERROR(INDEX(PlanificatorEvenimente[],MATCH(DATEVALUE(ValDată)&PlanificareZilnică[[#This Row],[Oră]],CăutareDatăȘiOră,0),3),\"\")","v":""},null,null,{"$f":"IFERROR(INDEX(PlanificatorEvenimente[],MATCH($H$12&\"|\"&ROW(A3),PlanificatorEvenimente[VALOARE UNICĂ (CALCULATĂ)],0),2),\"\")","v":""},{"$f":"IFERROR(INDEX(PlanificatorEvenimente[],MATCH($H$12&\"|\"&ROW(A3),PlanificatorEvenimente[VALOARE UNICĂ (CALCULATĂ)],0),3),\"\")","v":""}]
[{"$nulls":4},{"$f":"'Intervale de timp'!E11","v":"08:00:00"},{"$f":"IFERROR(INDEX(PlanificatorEvenimente[],MATCH(DATEVALUE(ValDată)&PlanificareZilnică[[#This Row],[Oră]],CăutareDatăȘiOră,0),3),\"\")","v":"Începerea turei"},null,{"$f":"IFERROR(ValDată+2,\"\")","v":"2022-06-25"},{"$f":"IFERROR(INDEX(PlanificatorEvenimente[],MATCH($H$12&\"|\"&ROW(A4),PlanificatorEvenimente[VALOARE UNICĂ (CALCULATĂ)],0),2),\"\")","v":""},{"$f":"IFERROR(INDEX(PlanificatorEvenimente[],MATCH($H$12&\"|\"&ROW(A4),PlanificatorEvenimente[VALOARE UNICĂ (CALCULATĂ)],0),3),\"\")","v":""}]
[null,"An",null,null,{"$f":"'Intervale de timp'!E12","v":"08:15:00"},{"$f":"IFERROR(INDEX(PlanificatorEvenimente[],MATCH(DATEVALUE(ValDată)&PlanificareZilnică[[#This Row],[Oră]],CăutareDatăȘiOră,0),3),\"\")","v":""},null,null,{"$f":"IFERROR(INDEX(PlanificatorEvenimente[],MATCH($H$12&\"|\"&ROW(A5),PlanificatorEvenimente[VALOARE UNICĂ (CALCULATĂ)],0),2),\"\")","v":""},{"$f":"IFERROR(INDEX(PlanificatorEvenimente[],MATCH($H$12&\"|\"&ROW(A5),PlanificatorEvenimente[VALOARE UNICĂ (CALCULATĂ)],0),3),\"\")","v":""}]
[{"$nulls":4},{"$f":"'Intervale de timp'!E13","v":"08:30:00"},{"$f":"IFERROR(INDEX(PlanificatorEvenimente[],MATCH(DATEVALUE(ValDată)&PlanificareZilnică[[#This Row],[Oră]],CăutareDatăȘiOră,0),3),\"\")","v":""},null,null,{"$f":"IFERROR(INDEX(PlanificatorEvenimente[],MATCH($H$12&\"|\"&ROW(A6),PlanificatorEvenimente[VALOARE UNICĂ (CALCULATĂ)],0),2),\"\")","v":""},{"$f":"IFERROR(INDEX(PlanificatorEvenimente[],MATCH($H$12&\"|\"&ROW(A6),PlanificatorEvenimente[VALOARE UNICĂ (CALCULATĂ)],0),3),\"\")","v":""}]
[null,"Luna",null,null,{"$f":"'Intervale de timp'!E14","v":"08:45:00"},{"$f":"IFERROR(INDEX(PlanificatorEvenimente[],MATCH(DATEVALUE(ValDată)&PlanificareZilnică[[#This Row],[Oră]],CăutareDatăȘiOră,0),3),\"\")","v":""},null,{"$f":"IFERROR(TEXT(DATEVALUE(ValDată)+3,\"dddd\"),\"\")","v":"duminică"},{"$f":"IFERROR(INDEX(PlanificatorEvenimente[],MATCH($H$18&\"|\"&ROW(A1),PlanificatorEvenimente[VALOARE UNICĂ (CALCULATĂ)],0),2),\"\")","v":""},{"$f":"IFERROR(INDEX(PlanificatorEvenimente[],MATCH($H$18&\"|\"&ROW(A1),PlanificatorEvenimente[VALOARE UNICĂ (CALCULATĂ)],0),3),\"\")","v":""}]
[{"$nulls":4},{"$f":"'Intervale de timp'!E15","v":"09:00:00"},{"$f":"IFERROR(INDEX(PlanificatorEvenimente[],MATCH(DATEVALUE(ValDată)&PlanificareZilnică[[#This Row],[Oră]],CăutareDatăȘiOră,0),3),\"\")","v":""},null,{"$f":"IFERROR(TEXT(DATEVALUE(ValDată)+3,\"d\"),\"\")","v":"26"},{"$f":"IFERROR(INDEX(PlanificatorEvenimente[],MATCH($H$18&\"|\"&ROW(A2),PlanificatorEvenimente[VALOARE UNICĂ (CALCULATĂ)],0),2),\"\")","v":""},{"$f":"IFERROR(INDEX(PlanificatorEvenimente[],MATCH($H$18&\"|\"&ROW(A2),PlanificatorEvenimente[VALOARE UNICĂ (CALCULATĂ)],0),3),\"\")","v":""}]
[null,"Ziua",null,null,{"$f":"'Intervale de timp'!E16","v":"09:15:00"},{"$f":"IFERROR(INDEX(PlanificatorEvenimente[],MATCH(DATEVALUE(ValDată)&PlanificareZilnică[[#This Row],[Oră]],CăutareDatăȘiOră,0),3),\"\")","v":""},null,null,{"$f":"IFERROR(INDEX(PlanificatorEvenimente[],MATCH($H$18&\"|\"&ROW(A3),PlanificatorEvenimente[VALOARE UNICĂ (CALCULATĂ)],0),2),\"\")","v":""},{"$f":"IFERROR(INDEX(PlanificatorEvenimente[],MATCH($H$18&\"|\"&ROW(A3),PlanificatorEvenimente[VALOARE UNICĂ (CALCULATĂ)],0),3),\"\")","v":""}]
[{"$nulls":4},{"$f":"'Intervale de timp'!E17","v":"09:30:00"},{"$f":"IFERROR(INDEX(PlanificatorEvenimente[],MATCH(DATEVALUE(ValDată)&PlanificareZilnică[[#This Row],[Oră]],CăutareDatăȘiOră,0),3),\"\")","v":""},null,{"$f":"IFERROR(ValDată+3,\"\")","v":"2022-06-26"},{"$f":"IFERROR(INDEX(PlanificatorEvenimente[],MATCH($H$18&\"|\"&ROW(A4),PlanificatorEvenimente[VALOARE UNICĂ (CALCULATĂ)],0),2),\"\")","v":""},{"$f":"IFERROR(INDEX(PlanificatorEvenimente[],MATCH($H$18&\"|\"&ROW(A4),PlanificatorEvenimente[VALOARE UNICĂ (CALCULATĂ)],0),3),\"\")","v":""}]
[null,"EDITAȚI PLANIFICAREA",null,null,{"$f":"'Intervale de timp'!E18","v":"09:45:00"},{"$f":"IFERROR(INDEX(PlanificatorEvenimente[],MATCH(DATEVALUE(ValDată)&PlanificareZilnică[[#This Row],[Oră]],CăutareDatăȘiOră,0),3),\"\")","v":""},null,null,{"$f":"IFERROR(INDEX(PlanificatorEvenimente[],MATCH($H$18&\"|\"&ROW(A5),PlanificatorEvenimente[VALOARE UNICĂ (CALCULATĂ)],0),2),\"\")","v":""},{"$f":"IFERROR(INDEX(PlanificatorEvenimente[],MATCH($H$18&\"|\"&ROW(A5),PlanificatorEvenimente[VALOARE UNICĂ (CALCULATĂ)],0),3),\"\")","v":""}]
[{"$nulls":4},{"$f":"'Intervale de timp'!E19","v":"10:00:00"},{"$f":"IFERROR(INDEX(PlanificatorEvenimente[],MATCH(DATEVALUE(ValDată)&PlanificareZilnică[[#This Row],[Oră]],CăutareDatăȘiOră,0),3),\"\")","v":"Pauză"},null,null,{"$f":"IFERROR(INDEX(PlanificatorEvenimente[],MATCH($H$18&\"|\"&ROW(A6),PlanificatorEvenimente[VALOARE UNICĂ (CALCULATĂ)],0),2),\"\")","v":""},{"$f":"IFERROR(INDEX(PlanificatorEvenimente[],MATCH($H$18&\"|\"&ROW(A6),PlanificatorEvenimente[VALOARE UNICĂ (CALCULATĂ)],0),3),\"\")","v":""}]
[null,"Selectați pentru a edita intervale de timp",null,null,{"$f":"'Intervale de timp'!E20","v":"10:15:00"},{"$f":"IFERROR(INDEX(PlanificatorEvenimente[],MATCH(DATEVALUE(ValDată)&PlanificareZilnică[[#This Row],[Oră]],CăutareDatăȘiOră,0),3),\"\")","v":""},null,{"$f":"IFERROR(TEXT(DATEVALUE(ValDată)+4,\"dddd\"),\"\")","v":"luni"},{"$f":"IFERROR(INDEX(PlanificatorEvenimente[],MATCH($H$24&\"|\"&ROW(A1),PlanificatorEvenimente[VALOARE UNICĂ (CALCULATĂ)],0),2),\"\")","v":""},{"$f":"IFERROR(INDEX(PlanificatorEvenimente[],MATCH($H$24&\"|\"&ROW(A1),PlanificatorEvenimente[VALOARE UNICĂ (CALCULATĂ)],0),3),\"\")","v":""}]
[{"$nulls":4},{"$f":"'Intervale de timp'!E21","v":"10:30:00"},{"$f":"IFERROR(INDEX(PlanificatorEvenimente[],MATCH(DATEVALUE(ValDată)&PlanificareZilnică[[#This Row],[Oră]],CăutareDatăȘiOră,0),3),\"\")","v":""},null,{"$f":"IFERROR(TEXT(DATEVALUE(ValDată)+4,\"d\"),\"\")","v":"27"},{"$f":"IFERROR(INDEX(PlanificatorEvenimente[],MATCH($H$24&\"|\"&ROW(A2),PlanificatorEvenimente[VALOARE UNICĂ (CALCULATĂ)],0),2),\"\")","v":""},{"$f":"IFERROR(INDEX(PlanificatorEvenimente[],MATCH($H$24&\"|\"&ROW(A2),PlanificatorEvenimente[VALOARE UNICĂ (CALCULATĂ)],0),3),\"\")","v":""}]
[null,"Selectați pentru a adăuga un eveniment nou",null,null,{"$f":"'Intervale de timp'!E22","v":"10:45:00"},{"$f":"IFERROR(INDEX(PlanificatorEvenimente[],MATCH(DATEVALUE(ValDată)&PlanificareZilnică[[#This Row],[Oră]],CăutareDatăȘiOră,0),3),\"\")","v":""},null,null,{"$f":"IFERROR(INDEX(PlanificatorEvenimente[],MATCH($H$24&\"|\"&ROW(A3),PlanificatorEvenimente[VALOARE UNICĂ (CALCULATĂ)],0),2),\"\")","v":""},{"$f":"IFERROR(INDEX(PlanificatorEvenimente[],MATCH($H$24&\"|\"&ROW(A3),PlanificatorEvenimente[VALOARE UNICĂ (CALCULATĂ)],0),3),\"\")","v":""}]
[{"$nulls":4},{"$f":"'Intervale de timp'!E23","v":"11:00:00"},{"$f":"IFERROR(INDEX(PlanificatorEvenimente[],MATCH(DATEVALUE(ValDată)&PlanificareZilnică[[#This Row],[Oră]],CăutareDatăȘiOră,0),3),\"\")","v":""},null,{"$f":"IFERROR(ValDată+4,\"\")","v":"2022-06-27"},{"$f":"IFERROR(INDEX(PlanificatorEvenimente[],MATCH($H$24&\"|\"&ROW(A4),PlanificatorEvenimente[VALOARE UNICĂ (CALCULATĂ)],0),2),\"\")","v":""},{"$f":"IFERROR(INDEX(PlanificatorEvenimente[],MATCH($H$24&\"|\"&ROW(A4),PlanificatorEvenimente[VALOARE UNICĂ (CALCULATĂ)],0),3),\"\")","v":""}]
[null,"EVIDENȚIAȚI ÎN PLANIFICARE:",null,null,{"$f":"'Intervale de timp'!E24","v":"11:15:00"},{"$f":"IFERROR(INDEX(PlanificatorEvenimente[],MATCH(DATEVALUE(ValDată)&PlanificareZilnică[[#This Row],[Oră]],CăutareDatăȘiOră,0),3),\"\")","v":""},null,null,{"$f":"IFERROR(INDEX(PlanificatorEvenimente[],MATCH($H$24&\"|\"&ROW(A5),PlanificatorEvenimente[VALOARE UNICĂ (CALCULATĂ)],0),2),\"\")","v":""},{"$f":"IFERROR(INDEX(PlanificatorEvenimente[],MATCH($H$24&\"|\"&ROW(A5),PlanificatorEvenimente[VALOARE UNICĂ (CALCULATĂ)],0),3),\"\")","v":""}]
[null,"Pauză",null,null,{"$f":"'Intervale de timp'!E25","v":"11:30:00"},{"$f":"IFERROR(INDEX(PlanificatorEvenimente[],MATCH(DATEVALUE(ValDată)&PlanificareZilnică[[#This Row],[Oră]],CăutareDatăȘiOră,0),3),\"\")","v":""},null,{"$f":"IFERROR(TEXT(DATEVALUE(ValDată)+5,\"dddd\"),\"\")","v":"marți"},{"$f":"IFERROR(INDEX(PlanificatorEvenimente[],MATCH($H$29&\"|\"&ROW(A1),PlanificatorEvenimente[VALOARE UNICĂ (CALCULATĂ)],0),2),\"\")","v":""},{"$f":"IFERROR(INDEX(PlanificatorEvenimente[],MATCH($H$29&\"|\"&ROW(A1),PlanificatorEvenimente[VALOARE UNICĂ (CALCULATĂ)],0),3),\"\")","v":""}]
[{"$nulls":4},{"$f":"'Intervale de timp'!E26","v":"11:45:00"},{"$f":"IFERROR(INDEX(PlanificatorEvenimente[],MATCH(DATEVALUE(ValDată)&PlanificareZilnică[[#This Row],[Oră]],CăutareDatăȘiOră,0),3),\"\")","v":""},null,{"$f":"IFERROR(TEXT(DATEVALUE(ValDată)+5,\"d\"),\"\")","v":"28"},{"$f":"IFERROR(INDEX(PlanificatorEvenimente[],MATCH($H$29&\"|\"&ROW(A2),PlanificatorEvenimente[VALOARE UNICĂ (CALCULATĂ)],0),2),\"\")","v":""},{"$f":"IFERROR(INDEX(PlanificatorEvenimente[],MATCH($H$29&\"|\"&ROW(A2),PlanificatorEvenimente[VALOARE UNICĂ (CALCULATĂ)],0),3),\"\")","v":""}]
[{"$nulls":4},{"$f":"'Intervale de timp'!E27","v":"12:00:00"},{"$f":"IFERROR(INDEX(PlanificatorEvenimente[],MATCH(DATEVALUE(ValDată)&PlanificareZilnică[[#This Row],[Oră]],CăutareDatăȘiOră,0),3),\"\")","v":"Prânz"},null,null,{"$f":"IFERROR(INDEX(PlanificatorEvenimente[],MATCH($H$29&\"|\"&ROW(A3),PlanificatorEvenimente[VALOARE UNICĂ (CALCULATĂ)],0),2),\"\")","v":""},{"$f":"IFERROR(INDEX(PlanificatorEvenimente[],MATCH($H$29&\"|\"&ROW(A3),PlanificatorEvenimente[VALOARE UNICĂ (CALCULATĂ)],0),3),\"\")","v":""}]
[{"$nulls":4},{"$f":"'Intervale de timp'!E28","v":"12:15:00"},{"$f":"IFERROR(INDEX(PlanificatorEvenimente[],MATCH(DATEVALUE(ValDată)&PlanificareZilnică[[#This Row],[Oră]],CăutareDatăȘiOră,0),3),\"\")","v":""},null,{"$f":"IFERROR(ValDată+5,\"\")","v":"2022-06-28"},{"$f":"IFERROR(INDEX(PlanificatorEvenimente[],MATCH($H$29&\"|\"&ROW(A4),PlanificatorEvenimente[VALOARE UNICĂ (CALCULATĂ)],0),2),\"\")","v":""},{"$f":"IFERROR(INDEX(PlanificatorEvenimente[],MATCH($H$29&\"|\"&ROW(A4),PlanificatorEvenimente[VALOARE UNICĂ (CALCULATĂ)],0),3),\"\")","v":""}]
[{"$nulls":4},{"$f":"'Intervale de timp'!E29","v":"12:30:00"},{"$f":"IFERROR(INDEX(PlanificatorEvenimente[],MATCH(DATEVALUE(ValDată)&PlanificareZilnică[[#This Row],[Oră]],CăutareDatăȘiOră,0),3),\"\")","v":""},null,null,{"$f":"IFERROR(INDEX(PlanificatorEvenimente[],MATCH($H$29&\"|\"&ROW(A5),PlanificatorEvenimente[VALOARE UNICĂ (CALCULATĂ)],0),2),\"\")","v":""},{"$f":"IFERROR(INDEX(PlanificatorEvenimente[],MATCH($H$29&\"|\"&ROW(A5),PlanificatorEvenimente[VALOARE UNICĂ (CALCULATĂ)],0),3),\"\")","v":""}]
[{"$nulls":4},{"$f":"'Intervale de timp'!E30","v":"12:45:00"},{"$f":"IFERROR(INDEX(PlanificatorEvenimente[],MATCH(DATEVALUE(ValDată)&PlanificareZilnică[[#This Row],[Oră]],CăutareDatăȘiOră,0),3),\"\")","v":""},null,{"$f":"IFERROR(TEXT(DATEVALUE(ValDată)+6,\"dddd\"),\"\")","v":"miercuri"},{"$f":"IFERROR(INDEX(PlanificatorEvenimente[],MATCH($H$34&\"|\"&ROW(A1),PlanificatorEvenimente[VALOARE UNICĂ (CALCULATĂ)],0),2),\"\")","v":""},{"$f":"IFERROR(INDEX(PlanificatorEvenimente[],MATCH($H$34&\"|\"&ROW(A1),PlanificatorEvenimente[VALOARE UNICĂ (CALCULATĂ)],0),3),\"\")","v":""}]
[{"$nulls":4},{"$f":"'Intervale de timp'!E31","v":"13:00:00"},{"$f":"IFERROR(INDEX(PlanificatorEvenimente[],MATCH(DATEVALUE(ValDată)&PlanificareZilnică[[#This Row],[Oră]],CăutareDatăȘiOră,0),3),\"\")","v":""},null,{"$f":"IFERROR(TEXT(DATEVALUE(ValDată)+6,\"d\"),\"\")","v":"29"},{"$f":"IFERROR(INDEX(PlanificatorEvenimente[],MATCH($H$34&\"|\"&ROW(A2),PlanificatorEvenimente[VALOARE UNICĂ (CALCULATĂ)],0),2),\"\")","v":""},{"$f":"IFERROR(INDEX(PlanificatorEvenimente[],MATCH($H$34&\"|\"&ROW(A2),PlanificatorEvenimente[VALOARE UNICĂ (CALCULATĂ)],0),3),\"\")","v":""}]
[{"$nulls":4},{"$f":"'Intervale de timp'!E32","v":"13:15:00"},{"$f":"IFERROR(INDEX(PlanificatorEvenimente[],MATCH(DATEVALUE(ValDată)&PlanificareZilnică[[#This Row],[Oră]],CăutareDatăȘiOră,0),3),\"\")","v":""},null,null,{"$f":"IFERROR(INDEX(PlanificatorEvenimente[],MATCH($H$34&\"|\"&ROW(A3),PlanificatorEvenimente[VALOARE UNICĂ (CALCULATĂ)],0),2),\"\")","v":""},{"$f":"IFERROR(INDEX(PlanificatorEvenimente[],MATCH($H$34&\"|\"&ROW(A3),PlanificatorEvenimente[VALOARE UNICĂ (CALCULATĂ)],0),3),\"\")","v":""}]
[{"$nulls":4},{"$f":"'Intervale de timp'!E33","v":"13:30:00"},{"$f":"IFERROR(INDEX(PlanificatorEvenimente[],MATCH(DATEVALUE(ValDată)&PlanificareZilnică[[#This Row],[Oră]],CăutareDatăȘiOră,0),3),\"\")","v":"Apelare firmă"},null,{"$f":"IFERROR(ValDată+6,\"\")","v":"2022-06-29"},{"$f":"IFERROR(INDEX(PlanificatorEvenimente[],MATCH($H$34&\"|\"&ROW(A4),PlanificatorEvenimente[VALOARE UNICĂ (CALCULATĂ)],0),2),\"\")","v":""},{"$f":"IFERROR(INDEX(PlanificatorEvenimente[],MATCH($H$34&\"|\"&ROW(A4),PlanificatorEvenimente[VALOARE UNICĂ (CALCULATĂ)],0),3),\"\")","v":""}]
[{"$nulls":4},{"$f":"'Intervale de timp'!E34","v":"13:45:00"},{"$f":"IFERROR(INDEX(PlanificatorEvenimente[],MATCH(DATEVALUE(ValDată)&PlanificareZilnică[[#This Row],[Oră]],CăutareDatăȘiOră,0),3),\"\")","v":""},null,null,{"$f":"IFERROR(INDEX(PlanificatorEvenimente[],MATCH($H$34&\"|\"&ROW(A5),PlanificatorEvenimente[VALOARE UNICĂ (CALCULATĂ)],0),2),\"\")","v":""},{"$f":"IFERROR(INDEX(PlanificatorEvenimente[],MATCH($H$34&\"|\"&ROW(A5),PlanificatorEvenimente[VALOARE UNICĂ (CALCULATĂ)],0),3),\"\")","v":""}]
[{"$nulls":4},{"$f":"'Intervale de timp'!E35","v":"14:00:00"},{"$f":"IFERROR(INDEX(PlanificatorEvenimente[],MATCH(DATEVALUE(ValDată)&PlanificareZilnică[[#This Row],[Oră]],CăutareDatăȘiOră,0),3),\"\")","v":""}]
[{"$nulls":4},{"$f":"'Intervale de timp'!E36","v":"14:15:00"},{"$f":"IFERROR(INDEX(PlanificatorEvenimente[],MATCH(DATEVALUE(ValDată)&PlanificareZilnică[[#This Row],[Oră]],CăutareDatăȘiOră,0),3),\"\")","v":""}]
[{"$nulls":4},{"$f":"'Intervale de timp'!E37","v":"14:30:00"},{"$f":"IFERROR(INDEX(PlanificatorEvenimente[],MATCH(DATEVALUE(ValDată)&PlanificareZilnică[[#This Row],[Oră]],CăutareDatăȘiOră,0),3),\"\")","v":""}]
[{"$nulls":4},{"$f":"'Intervale de timp'!E38","v":"14:45:00"},{"$f":"IFERROR(INDEX(PlanificatorEvenimente[],MATCH(DATEVALUE(ValDată)&PlanificareZilnică[[#This Row],[Oră]],CăutareDatăȘiOră,0),3),\"\")","v":""}]
[{"$nulls":4},{"$f":"'Intervale de timp'!E39","v":"15:00:00"},{"$f":"IFERROR(INDEX(PlanificatorEvenimente[],MATCH(DATEVALUE(ValDată)&PlanificareZilnică[[#This Row],[Oră]],CăutareDatăȘiOră,0),3),\"\")","v":"Pauză"}]
[{"$nulls":4},{"$f":"'Intervale de timp'!E40","v":"15:15:00"},{"$f":"IFERROR(INDEX(PlanificatorEvenimente[],MATCH(DATEVALUE(ValDată)&PlanificareZilnică[[#This Row],[Oră]],CăutareDatăȘiOră,0),3),\"\")","v":""}]
[{"$nulls":4},{"$f":"'Intervale de timp'!E41","v":"15:30:00"},{"$f":"IFERROR(INDEX(PlanificatorEvenimente[],MATCH(DATEVALUE(ValDată)&PlanificareZilnică[[#This Row],[Oră]],CăutareDatăȘiOră,0),3),\"\")","v":""}]
[{"$nulls":4},{"$f":"'Intervale de timp'!E42","v":"15:45:00"},{"$f":"IFERROR(INDEX(PlanificatorEvenimente[],MATCH(DATEVALUE(ValDată)&PlanificareZilnică[[#This Row],[Oră]],CăutareDatăȘiOră,0),3),\"\")","v":""}]
[{"$nulls":4},{"$f":"'Intervale de timp'!E43","v":"16:00:00"},{"$f":"IFERROR(INDEX(PlanificatorEvenimente[],MATCH(DATEVALUE(ValDată)&PlanificareZilnică[[#This Row],[Oră]],CăutareDatăȘiOră,0),3),\"\")","v":""}]
[{"$nulls":4},{"$f":"'Intervale de timp'!E44","v":"16:15:00"},{"$f":"IFERROR(INDEX(PlanificatorEvenimente[],MATCH(DATEVALUE(ValDată)&PlanificareZilnică[[#This Row],[Oră]],CăutareDatăȘiOră,0),3),\"\")","v":""}]
[{"$nulls":4},{"$f":"'Intervale de timp'!E45","v":"16:30:00"},{"$f":"IFERROR(INDEX(PlanificatorEvenimente[],MATCH(DATEVALUE(ValDată)&PlanificareZilnică[[#This Row],[Oră]],CăutareDatăȘiOră,0),3),\"\")","v":""}]
[{"$nulls":4},{"$f":"'Intervale de timp'!E46","v":"16:45:00"},{"$f":"IFERROR(INDEX(PlanificatorEvenimente[],MATCH(DATEVALUE(ValDată)&PlanificareZilnică[[#This Row],[Oră]],CăutareDatăȘiOră,0),3),\"\")","v":""}]
[{"$nulls":4},{"$f":"'Intervale de timp'!E47","v":"17:00:00"},{"$f":"IFERROR(INDEX(PlanificatorEvenimente[],MATCH(DATEVALUE(ValDată)&PlanificareZilnică[[#This Row],[Oră]],CăutareDatăȘiOră,0),3),\"\")","v":"Acasă"}]
[{"$nulls":4},{"$f":"'Intervale de timp'!E48","v":"17:15:00"},{"$f":"IFERROR(INDEX(PlanificatorEvenimente[],MATCH(DATEVALUE(ValDată)&PlanificareZilnică[[#This Row],[Oră]],CăutareDatăȘiOră,0),3),\"\")","v":""}]
[{"$nulls":4},{"$f":"'Intervale de timp'!E49","v":"17:30:00"},{"$f":"IFERROR(INDEX(PlanificatorEvenimente[],MATCH(DATEVALUE(ValDată)&PlanificareZilnică[[#This Row],[Oră]],CăutareDatăȘiOră,0),3),\"\")","v":""}]
[{"$nulls":4},{"$f":"'Intervale de timp'!E50","v":"17:45:00"},{"$f":"IFERROR(INDEX(PlanificatorEvenimente[],MATCH(DATEVALUE(ValDată)&PlanificareZilnică[[#This Row],[Oră]],CăutareDatăȘiOră,0),3),\"\")","v":""}]
[{"$nulls":4},{"$f":"'Intervale de timp'!E51","v":"18:00:00"},{"$f":"IFERROR(INDEX(PlanificatorEvenimente[],MATCH(DATEVALUE(ValDată)&PlanificareZilnică[[#This Row],[Oră]],CăutareDatăȘiOră,0),3),\"\")","v":"Antrenament fotbal"}]
[{"$nulls":4},{"$f":"'Intervale de timp'!E52","v":"18:15:00"},{"$f":"IFERROR(INDEX(PlanificatorEvenimente[],MATCH(DATEVALUE(ValDată)&PlanificareZilnică[[#This Row],[Oră]],CăutareDatăȘiOră,0),3),\"\")","v":""}]
[{"$nulls":4},{"$f":"'Intervale de timp'!E53","v":"18:30:00"},{"$f":"IFERROR(INDEX(PlanificatorEvenimente[],MATCH(DATEVALUE(ValDată)&PlanificareZilnică[[#This Row],[Oră]],CăutareDatăȘiOră,0),3),\"\")","v":""}]
[{"$nulls":4},{"$f":"'Intervale de timp'!E54","v":"18:45:00"},{"$f":"IFERROR(INDEX(PlanificatorEvenimente[],MATCH(DATEVALUE(ValDată)&PlanificareZilnică[[#This Row],[Oră]],CăutareDatăȘiOră,0),3),\"\")","v":""}]
[{"$nulls":4},{"$f":"'Intervale de timp'!E55","v":"19:00:00"},{"$f":"IFERROR(INDEX(PlanificatorEvenimente[],MATCH(DATEVALUE(ValDată)&PlanificareZilnică[[#This Row],[Oră]],CăutareDatăȘiOră,0),3),\"\")","v":""}]
[{"$nulls":4},{"$f":"'Intervale de timp'!E56","v":"19:15:00"},{"$f":"IFERROR(INDEX(PlanificatorEvenimente[],MATCH(DATEVALUE(ValDată)&PlanificareZilnică[[#This Row],[Oră]],CăutareDatăȘiOră,0),3),\"\")","v":""}]
[{"$nulls":4},{"$f":"'Intervale de timp'!E57","v":"19:30:00"},{"$f":"IFERROR(INDEX(PlanificatorEvenimente[],MATCH(DATEVALUE(ValDată)&PlanificareZilnică[[#This Row],[Oră]],CăutareDatăȘiOră,0),3),\"\")","v":""}]
[{"$nulls":4},{"$f":"'Intervale de timp'!E58","v":"19:45:00"},{"$f":"IFERROR(INDEX(PlanificatorEvenimente[],MATCH(DATEVALUE(ValDată)&PlanificareZilnică[[#This Row],[Oră]],CăutareDatăȘiOră,0),3),\"\")","v":""}]
[{"$nulls":4},{"$f":"'Intervale de timp'!E59","v":"20:00:00"},{"$f":"IFERROR(INDEX(PlanificatorEvenimente[],MATCH(DATEVALUE(ValDată)&PlanificareZilnică[[#This Row],[Oră]],CăutareDatăȘiOră,0),3),\"\")","v":""}]
[{"$nulls":4},{"$f":"'Intervale de timp'!E60","v":"20:15:00"},{"$f":"IFERROR(INDEX(PlanificatorEvenimente[],MATCH(DATEVALUE(ValDată)&PlanificareZilnică[[#This Row],[Oră]],CăutareDatăȘiOră,0),3),\"\")","v":""}]
[{"$nulls":4},{"$f":"'Intervale de timp'!E61","v":"20:30:00"},{"$f":"IFERROR(INDEX(PlanificatorEvenimente[],MATCH(DATEVALUE(ValDată)&PlanificareZilnică[[#This Row],[Oră]],CăutareDatăȘiOră,0),3),\"\")","v":""}]
[{"$nulls":4},{"$f":"'Intervale de timp'!E62","v":"20:45:00"},{"$f":"IFERROR(INDEX(PlanificatorEvenimente[],MATCH(DATEVALUE(ValDată)&PlanificareZilnică[[#This Row],[Oră]],CăutareDatăȘiOră,0),3),\"\")","v":""}]
[{"$nulls":4},{"$f":"'Intervale de timp'!E63","v":"21:00:00"},{"$f":"IFERROR(INDEX(PlanificatorEvenimente[],MATCH(DATEVALUE(ValDată)&PlanificareZilnică[[#This Row],[Oră]],CăutareDatăȘiOră,0),3),\"\")","v":""}]
[{"$nulls":4},{"$f":"'Intervale de timp'!E64","v":""},{"$f":"IFERROR(INDEX(PlanificatorEvenimente[],MATCH(DATEVALUE(ValDată)&PlanificareZilnică[[#This Row],[Oră]],CăutareDatăȘiOră,0),3),\"\")","v":""}]
[{"$nulls":4},{"$f":"'Intervale de timp'!E65","v":""},{"$f":"IFERROR(INDEX(PlanificatorEvenimente[],MATCH(DATEVALUE(ValDată)&PlanificareZilnică[[#This Row],[Oră]],CăutareDatăȘiOră,0),3),\"\")","v":""}]
[{"$nulls":4},{"$f":"'Intervale de timp'!E66","v":""},{"$f":"IFERROR(INDEX(PlanificatorEvenimente[],MATCH(DATEVALUE(ValDată)&PlanificareZilnică[[#This Row],[Oră]],CăutareDatăȘiOră,0),3),\"\")","v":""}]
[{"$nulls":4},{"$f":"'Intervale de timp'!E67","v":""},{"$f":"IFERROR(INDEX(PlanificatorEvenimente[],MATCH(DATEVALUE(ValDată)&PlanificareZilnică[[#This Row],[Oră]],CăutareDatăȘiOră,0),3),\"\")","v":""}]
[{"$nulls":4},{"$f":"'Intervale de timp'!E68","v":""},{"$f":"IFERROR(INDEX(PlanificatorEvenimente[],MATCH(DATEVALUE(ValDată)&PlanificareZilnică[[#This Row],[Oră]],CăutareDatăȘiOră,0),3),\"\")","v":""}]
[{"$nulls":4},{"$f":"'Intervale de timp'!E69","v":""},{"$f":"IFERROR(INDEX(PlanificatorEvenimente[],MATCH(DATEVALUE(ValDată)&PlanificareZilnică[[#This Row],[Oră]],CăutareDatăȘiOră,0),3),\"\")","v":""}]
[{"$nulls":4},{"$f":"'Intervale de timp'!E70","v":""},{"$f":"IFERROR(INDEX(PlanificatorEvenimente[],MATCH(DATEVALUE(ValDată)&PlanificareZilnică[[#This Row],[Oră]],CăutareDatăȘiOră,0),3),\"\")","v":""}]
[{"$nulls":4},{"$f":"'Intervale de timp'!E71","v":""},{"$f":"IFERROR(INDEX(PlanificatorEvenimente[],MATCH(DATEVALUE(ValDată)&PlanificareZilnică[[#This Row],[Oră]],CăutareDatăȘiOră,0),3),\"\")","v":""}]
[{"$nulls":4},{"$f":"'Intervale de timp'!E72","v":""},{"$f":"IFERROR(INDEX(PlanificatorEvenimente[],MATCH(DATEVALUE(ValDată)&PlanificareZilnică[[#This Row],[Oră]],CăutareDatăȘiOră,0),3),\"\")","v":""}]
[{"$nulls":4},{"$f":"'Intervale de timp'!E73","v":""},{"$f":"IFERROR(INDEX(PlanificatorEvenimente[],MATCH(DATEVALUE(ValDată)&PlanificareZilnică[[#This Row],[Oră]],CăutareDatăȘiOră,0),3),\"\")","v":""}]
[{"$nulls":4},{"$f":"'Intervale de timp'!E74","v":""},{"$f":"IFERROR(INDEX(PlanificatorEvenimente[],MATCH(DATEVALUE(ValDată)&PlanificareZilnică[[#This Row],[Oră]],CăutareDatăȘiOră,0),3),\"\")","v":""}]
[{"$nulls":4},{"$f":"'Intervale de timp'!E75","v":""},{"$f":"IFERROR(INDEX(PlanificatorEvenimente[],MATCH(DATEVALUE(ValDată)&PlanificareZilnică[[#This Row],[Oră]],CăutareDatăȘiOră,0),3),\"\")","v":""}]

{"sheet":"Planificator de evenimente","index":1,"n_rows":15,"n_cols":8,"rows_kept":15,"merged":[[0,1,0,2],[1,1,4,2],[5,1,6,2],[7,1,7,2]]}
[null,"Planificator de evenimente"]
[null,{"$f":"DAY(ValDată)","v":23},null,null,"DATA","ORA","DESCRIERE","VALOARE UNICĂ (CALCULATĂ)"]
[{"$nulls":4},{"$f":"TODAY()","v":"2022-06-23"},"06:00:00","Trezirea",{"$f":"PlanificatorEvenimente[[#This Row],[DATA]]&\"|\"&COUNTIF($E$3:E3,E3)","v":"44735|1"}]
[{"$nulls":4},{"$f":"TODAY()","v":"2022-06-23"},"06:30:00","Duș",{"$f":"PlanificatorEvenimente[[#This Row],[DATA]]&\"|\"&COUNTIF($E$3:E4,E4)","v":"44735|2"}]
[{"$nulls":4},"2022-06-23","07:30:00","Plecarea la serviciu",{"$f":"PlanificatorEvenimente[[#This Row],[DATA]]&\"|\"&COUNTIF($E$3:E5,E5)","v":"44735|3"}]
[null,{"$f":"TEXT(ValDată,\"dddd\")","v":"joi"},null,null,"2022-06-23","08:00:00","Începerea turei",{"$f":"PlanificatorEvenimente[[#This Row],[DATA]]&\"|\"&COUNTIF($E$3:E6,E6)","v":"44735|4"}]
[{"$nulls":4},"2022-06-23","10:00:00","Pauză",{"$f":"PlanificatorEvenimente[[#This Row],[DATA]]&\"|\"&COUNTIF($E$3:E7,E7)","v":"44735|5"}]
[null,{"$f":"ValDată","v":"23 IUNIE 2022"},null,null,"2022-06-23","12:00:00","Prânz",{"$f":"PlanificatorEvenimente[[#This Row],[DATA]]&\"|\"&COUNTIF($E$3:E8,E8)","v":"44735|6"}]
[{"$nulls":4},"2022-06-23","13:00:00","Întoarcerea la serviciu",{"$f":"PlanificatorEvenimente[[#This Row],[DATA]]&\"|\"&COUNTIF($E$3:E9,E9)","v":"44735|7"}]
[null,"Selectați pentru a edita intervale de timp",null,null,"2022-06-23","13:30:00","Apelare firmă",{"$f":"PlanificatorEvenimente[[#This Row],[DATA]]&\"|\"&COUNTIF($E$3:E10,E10)","v":"44735|8"}]
[{"$nulls":4},"2022-06-23","15:00:00","Pauză",{"$f":"PlanificatorEvenimente[[#This Row],[DATA]]&\"|\"&COUNTIF($E$3:E11,E11)","v":"44735|9"}]
[null,"Selectați pentru a vizualiza Planificarea zilnică",null,null,"2022-06-23","17:00:00","Acasă",{"$f":"PlanificatorEvenimente[[#This Row],[DATA]]&\"|\"&COUNTIF($E$3:E12,E12)","v":"44735|10"}]
[{"$nulls":4},"2022-06-23","18:00:00","Antrenament fotbal",{"$f":"PlanificatorEvenimente[[#This Row],[DATA]]&\"|\"&COUNTIF($E$3:E13,E13)","v":"44735|11"}]
[{"$nulls":4},{"$f":"TODAY()+1","v":"2022-06-24"},"06:30:00","Mic dejun",{"$f":"PlanificatorEvenimente[[#This Row],[DATA]]&\"|\"&COUNTIF($E$3:E15,E14)","v":"44736|2"}]
[{"$nulls":4},{"$f":"TODAY()+1","v":"2022-06-24"},"07:30:00","Plecarea la serviciu",{"$f":"PlanificatorEvenimente[[#This Row],[DATA]]&\"|\"&COUNTIF($E$3:E15,E15)","v":"44736|2"}]

{"sheet":"Intervale de timp","index":2,"n_rows":75,"n_cols":5,"rows_kept":75,"merged":[[0,1,0,2],[1,1,1,2],[9,1,9,2]]}
[null,"Intervale de timp"]
[null,"EDITARE TABEL ORĂ",null,null,"Oră"]
[{"$nulls":4},{"$f":"Ora_de_început","v":"06:00:00"}]
[null,"Ora de început","06:00:00",null,{"$f":"IFERROR(IF($E3+Increment>OraDeSfârșit,\"\",$E3+Increment),\"\")","v":"06:15:00"}]
[{"$nulls":4},"06:30:00"]
[null,"Interval","15 MIN",null,"06:45:00"]
[{"$nulls":4},"07:00:00"]
[null,"Ora de sfârșit","21:00:00",null,"07:15:00"]
[{"$nulls":4},"07:30:00"]
[null,"VIZUALIZARE PLANIFICARE",null,null,"07:45:00"]
[{"$nulls":4},"08:00:00"]
[null,"Selectați pentru a vizualiza Planificarea zilnică",null,null,"08:15:00"]
[{"$nulls":4},"08:30:00"]
[null,"Selectați pentru a adăuga un eveniment nou",null,null,"08:45:00"]
[{"$nulls":4},"09:00:00"]
[{"$nulls":4},"09:15:00"]
[{"$nulls":4},"09:30:00"]
[{"$nulls":4},"09:45:00"]
[{"$nulls":4},"10:00:00"]
[{"$nulls":4},"10:15:00"]
[{"$nulls":4},"10:30:00"]
[{"$nulls":4},"10:45:00"]
[{"$nulls":4},"11:00:00"]
[{"$nulls":4},"11:15:00"]
[{"$nulls":4},"11:30:00"]
[{"$nulls":4},"11:45:00"]
[{"$nulls":4},"12:00:00"]
[{"$nulls":4},"12:15:00"]
[{"$nulls":4},"12:30:00"]
[{"$nulls":4},"12:45:00"]
[{"$nulls":4},"13:00:00"]
[{"$nulls":4},"13:15:00"]
[{"$nulls":4},"13:30:00"]
[{"$nulls":4},"13:45:00"]
[{"$nulls":4},"14:00:00"]
[{"$nulls":4},{"$f":"IFERROR(IF($E35+Increment>OraDeSfârșit,\"\",$E35+Increment),\"\")","v":"14:15:00"}]
[{"$nulls":4},"14:30:00"]
[{"$nulls":4},"14:45:00"]
[{"$nulls":4},"15:00:00"]
[{"$nulls":4},"15:15:00"]
[{"$nulls":4},"15:30:00"]
[{"$nulls":4},"15:45:00"]
[{"$nulls":4},"16:00:00"]
[{"$nulls":4},"16:15:00"]
[{"$nulls":4},"16:30:00"]
[{"$nulls":4},"16:45:00"]
[{"$nulls":4},"17:00:00"]
[{"$nulls":4},"17:15:00"]
[{"$nulls":4},"17:30:00"]
[{"$nulls":4},"17:45:00"]
[{"$nulls":4},"18:00:00"]
[{"$nulls":4},"18:15:00"]
[{"$nulls":4},"18:30:00"]
[{"$nulls":4},"18:45:00"]
[{"$nulls":4},"19:00:00"]
[{"$nulls":4},"19:15:00"]
[{"$nulls":4},"19:30:00"]
[{"$nulls":4},"19:45:00"]
[{"$nulls":4},"20:00:00"]
[{"$nulls":4},"20:15:00"]
[{"$nulls":4},"20:30:00"]
[{"$nulls":4},"20:45:00"]
[{"$nulls":4},"21:00:00"]
[{"$nulls":4},""]
[{"$nulls":4},""]
[{"$nulls":4},""]
[{"$nulls":4},""]
[{"$nulls":4},{"$f":"IFERROR(IF($E67+Increment>OraDeSfârșit,\"\",$E67+Increment),\"\")","v":""}]
[{"$nulls":4},""]
[{"$nulls":4},""]
[{"$nulls":4},""]
[{"$nulls":4},""]
[{"$nulls":4},""]
[{"$nulls":4},""]
[{"$nulls":4},""]